[Event "GER-ch Youth U12W 2020"]
[Site "Willingen"]
[Date "2020.10.28"]
[Round "3.18"]
[White "Moldovan, Tatiana"]
[Black "Heutling, Sarah"]
[Result "1-0"]
[ECO "C70"]
[WhiteElo "1516"]
[BlackElo "1197"]
[Annotator "NA"]
[PlyCount "105"]
[EventDate "2020.10.27"]
[EventType "swiss"]
[EventRounds "7"]
[EventCountry "GER"]
[SourceTitle "playchess.com"]
[Source "ChessBase"]
[SourceQuality "1"]
[TimeControl "40/5400+30:1800+30"]

1. e4 {[%emt 0:02:39]} e5 {[%emt 0:00:00]} 2. Nf3 {[%emt 0:03:50]} Nc6 {[%emt 0:00:00]} 3. Bb5 {[%emt 0:00:20]} a6 {[%emt 0:00:03]} 4. Ba4 {[%emt 0:00:03]} b5 {[%emt 0:00:07]} 5. Bb3 {[%emt 0:00:10]} Na5 {[%emt 0:00:11]} 6. d3 {[%emt 0:00:45]} d6 {[%emt 0:00:54]} 7. a3 {[%emt 0:00:41]} Nxb3 {[%emt 0:00:25]} 8. cxb3 {[%emt 0:00:05]} Bb7 {[%emt 0:01:23]} 9. O-O {[%emt 0:00:24]} Nf6 {[%emt 0:01:19]} 10. Nc3 {[%emt 0:00:52]} Be7 {[%emt 0:02:13]} 11. Qe2 {[%emt 0:01:07]} O-O {[%emt 0:02:04]} 12. Ng5 {[%emt 0:08:55]} h6 {[%emt 0:02:39]} 13. Nh3 {[%emt 0:00:19]} Qd7 {[%emt 0:06:21]} 14. Qf3 {[%emt 0:07:31]} c6 {[%emt 0:07:13]} 15. Qg3 {[%emt 0:04:54]} Nh5 {[%emt 0:01:10]} 16. Qf3 {[%emt 0:00:16]} d5 17. Qxh5 {[%emt 0:00:24]} Qe6 {[%emt 0:14:54]} 18. f4 {[%emt 0:04:43]} d4 {[%emt 0:07:27]} 19. Nd1 {[%emt 0:05:56]} c5 {[%emt 0:00:12]} 20. fxe5 {[%emt 0:04:08]} c4 {[%emt 0:02:04]} 21. Nf4 {[%emt 0:02:00]} Qd7 {[%emt 0:00:30]} 22. bxc4 {[%emt 0:02:17]} bxc4 {[%emt 0:00:13]} 23. Nf2 {[%emt 0:03:28]} cxd3 {[%emt 0:00:22]} 24. N4xd3 {[%emt 0:00:26]} f6 {[%emt 0:02:02]} 25. exf6 {[%emt 0:03:28]} Bxf6 {[%emt 0:00:19]} 26. Nc5 {[%emt 0:01:05]} Qe7 {[%emt 0:00:22]} 27. Nxb7 {[%emt 0:00:16]} Qxb7 {[%emt 0:00:08]} 28. Rd1 {[%emt 0:03:02]} Rad8 {[%emt 0:02:19]} 29. b4 {[%emt 0:02:20]} d3 {[%emt 0:00:41]} 30. e5 {[%emt 0:01:26]} Be7 {[%emt 0:01:23]} 31. Be3 {[%emt 0:02:00]} Qb5 {[%emt 0:05:25]} 32. Rd2 {[%emt 0:04:46]} Rd5 {[%emt 0:00:21]} 33. Qd1 {[%emt 0:02:14]} Rxe5 {[%emt 0:00:27]} 34. Rxd3 {[%emt 0:00:56]} Bf6 {[%emt 0:01:13]} 35. Ng4 {[%emt 0:00:37]} Rf5 {[%emt 0:00:30]} 36. Nxf6+ {[%emt 0:00:43]} R5xf6 {[%emt 0:00:30]} 37. Qb3+ {[%emt 0:00:25]} Kh8 {[%emt 0:00:21]} 38. Bc5 {[%emt 0:01:03]} R8f7 {[%emt 0:01:24]} 39. Rd8+ {[%emt 0:00:38]} Kh7 {[%emt 0:00:10]} 40. Qd3+ {[%emt 0:00:12]} Qxd3 {[%emt 0:00:15]} 41. Rxd3 {[%emt 0:30:09]} g5 {[%emt 0:30:15]} 42. Rdd1 {[%emt 0:00:32]} Re6 {[%emt 0:01:30]} 43. Re1 {[%emt 0:00:14]} Rc6 {[%emt 0:00:16]} 44. Re7 {[%emt 0:00:14]} Rxe7 {[%emt 0:00:42]} 45. Bxe7 {[%emt 0:00:06]} Rc7 {[%emt 0:00:10]} 46. Bc5 {[%emt 0:00:16]} Kg6 {[%emt 0:00:09]} 47. Rd1 {[%emt 0:00:22]} Kh5 {[%emt 0:00:20]} 48. Rd6 {[%emt 0:00:26]} Rc8 {[%emt 0:00:28]} 49. h3 {[%emt 0:00:14]} Re8 {[%emt 0:00:08]} 50. Kf2 {[%emt 0:00:45]} Rf8+ {[%emt 0:00:15]} 51. Kg3 {[%emt 0:00:16]} Rf7 {[%emt 0:00:17]} 52. Kh2 {[%emt 0:00:11]} Kh4 {[%emt 0:00:12]} 53. Rxh6# {[%emt 0:00:18]} 1-0

[Event "GER-ch Youth U12W 2020"]
[Site "Willingen"]
[Date "2020.10.28"]
[Round "3.19"]
[White "Margaryan, Venera"]
[Black "Woiteck, Helena"]
[Result "1-0"]
[ECO "D20"]
[WhiteElo "1457"]
[BlackElo "1092"]
[Annotator "NA"]
[PlyCount "35"]
[EventDate "2020.10.27"]
[EventType "swiss"]
[EventRounds "7"]
[EventCountry "GER"]
[SourceTitle "playchess.com"]
[Source "ChessBase"]
[SourceQuality "1"]
[TimeControl "40/5400+30:1800+30"]

1. d4 {[%emt 0:00:00]} d5 {[%emt 0:00:00]} 2. c4 {[%emt 0:00:00]} dxc4 {[%emt 0:00:00]} 3. e3 {[%emt 0:00:00]} Nf6 {[%emt 0:00:30]} 4. Bxc4 {[%emt 0:00:00]} Bf5 {[%emt 0:00:48]} 5. Qb3 {[%emt 0:00:28]} b6 {[%emt 0:01:37]} 6. Bxf7+ {[%emt 0:00:13]} Kd7 {[%emt 0:01:01]} 7. Qb5+ {[%emt 0:00:12]} c6 {[%emt 0:08:13]} 8. Qxf5+ {[%emt 0:00:18]} Kc7 {[%emt 0:03:31]} 9. Nf3 {[%emt 0:00:40]} Nfd7 {[%emt 0:16:42]} 10. Ne5 {[%emt 0:01:35]} Kb7 {[%emt 0:02:47]} 11. Nxd7 {[%emt 0:01:51]} Nxd7 {[%emt 0:00:37]} 12. Nc3 {[%emt 0:00:27]} g6 {[%emt 0:14:33]} 13. Qe4 {[%emt 0:01:28]} Bg7 {[%emt 0:03:16]} 14. d5 {[%emt 0:00:29]} Bf8 {[%emt 0:04:03]} 15. dxc6+ {[%emt 0:00:18]} Kc7 {[%emt 0:03:49]} 16. Nb5+ {[%emt 0:00:24]} Kc8 {[%emt 0:01:00]} 17. cxd7+ {[%emt 0:00:15]} Qxd7 {[%emt 0:05:32]} 18. Qxa8# 1-0

[Event "GER-ch Youth U12W 2020"]
[Site "Willingen"]
[Date "2020.10.28"]
[Round "3.20"]
[White "Hoffmann, Sophia"]
[Black "Marrufo, Emilia"]
[Result "1-0"]
[ECO "D02"]
[WhiteElo "1345"]
[BlackElo "788"]
[Annotator "NA"]
[PlyCount "89"]
[EventDate "2020.10.27"]
[EventType "swiss"]
[EventRounds "7"]
[EventCountry "GER"]
[SourceTitle "playchess.com"]
[Source "ChessBase"]
[SourceQuality "1"]
[TimeControl "40/5400+30:1800+30"]

1. d4 {[%emt 0:00:00]} d5 {[%emt 0:00:00]} 2. Nf3 {[%emt 0:00:00]} Nf6 {[%emt 0:00:03]} 3. Bf4 {[%emt 0:00:00]} g6 {[%emt 0:00:29]} 4. e3 {[%emt 0:00:38]} Bg7 {[%emt 0:00:55]} 5. Bd3 {[%emt 0:00:16]} O-O {[%emt 0:00:29]} 6. Nbd2 {[%emt 0:00:34]} Bf5 {[%emt 0:00:39]} 7. Bxf5 {[%emt 0:01:47]} gxf5 {[%emt 0:00:46]} 8. O-O {[%emt 0:00:33]} Nc6 {[%emt 0:01:30]} 9. Nh4 {[%emt 0:02:59]} e6 {[%emt 0:01:10]} 10. Nhf3 {[%emt 0:05:48]} Ne4 {[%emt 0:02:24]} 11. Nxe4 {[%emt 0:08:39]} dxe4 {[%emt 0:03:21]} 12. Nd2 {[%emt 0:00:42]} f6 {[%emt 0:03:09]} 13. f3 {[%emt 0:02:54]} e5 {[%emt 0:02:16]} 14. Bg3 {[%emt 0:01:56]} f4 {[%emt 0:02:13]} 15. Bf2 fxe3 {[%emt 0:01:48]} 16. Bxe3 {[%emt 0:06:16]} exd4 {[%emt 0:00:16]} 17. Bf4 {[%emt 0:00:47]} e3 {[%emt 0:02:21]} 18. Nb3 {[%emt 0:01:19]} f5 {[%emt 0:03:01]} 19. Re1 {[%emt 0:01:13]} Re8 {[%emt 0:01:52]} 20. Qd3 {[%emt 0:03:03]} Qh4 {[%emt 0:02:23]} 21. Bg3 {[%emt 0:00:39]} Qg5 {[%emt 0:01:08]} 22. Nc5 {[%emt 0:04:51]} f4 {[%emt 0:01:40]} 23. Qb3+ {[%emt 0:06:46]} Kf8 {[%emt 0:00:57]} 24. Ne6+ {[%emt 0:02:26]} Rxe6 {[%emt 0:01:12]} 25. Qxe6 {[%emt 0:00:40]} fxg3 {[%emt 0:00:30]} 26. hxg3 {[%emt 0:01:02]} Nb4 {[%emt 0:01:40]} 27. Qc4 {[%emt 0:01:44]} a5 {[%emt 0:03:26]} 28. Qxc7 {[%emt 0:04:29]} Be5 {[%emt 0:01:51]} 29. Qc5+ {[%emt 0:00:57]} Qe7 {[%emt 0:02:18]} 30. Qc4 {[%emt 0:03:18]} Bxg3 {[%emt 0:01:03]} 31. Red1 {[%emt 0:00:41]} e2 {[%emt 0:00:57]} 32. Re1 {[%emt 0:01:41]} Bxe1 {[%emt 0:00:56]} 33. Rxe1 {[%emt 0:00:19]} Qe3+ {[%emt 0:00:25]} 34. Kh1 {[%emt 0:01:10]} Qd2 {[%emt 0:00:47]} 35. Rxe2 {[%emt 0:01:52]} Qf4 {[%emt 0:02:31]} 36. Qc5+ {[%emt 0:02:59]} Kg7 {[%emt 0:01:34]} 37. Re7+ {[%emt 0:01:55]} Kg6 {[%emt 0:00:57]} 38. Qb6+ {[%emt 0:03:11]} Qf6 {[%emt 0:00:54]} 39. Qxb7 {[%emt 0:01:29]} Qh4+ {[%emt 0:01:47]} 40. Kg1 {[%emt 0:02:20]} Rd8 {[%emt 0:02:11]} 41. Re6+ {[%emt 0:35:04]} Kf5 {[%emt 0:31:23]} 42. Qf7+ {[%emt 0:00:14]} Kg5 {[%emt 0:00:29]} 43. Qf6+ {[%emt 0:00:12]} Kh5 {[%emt 0:00:34]} 44. Re5+ {[%emt 0:00:14]} Qg5 {[%emt 0:00:38]} 45. Qxg5# {[%emt 0:00:08]} 1-0

[Event "GER-ch Youth U12W 2020"]
[Site "Willingen"]
[Date "2020.10.29"]
[Round "4.1"]
[White "Bräutigam, Katerina"]
[Black "Peglau, Charis"]
[Result "1-0"]
[ECO "B40"]
[WhiteElo "1744"]
[BlackElo "1768"]
[Annotator "NA RC"]
[PlyCount "101"]
[EventDate "2020.10.27"]
[EventType "swiss"]
[EventRounds "7"]
[EventCountry "GER"]
[SourceTitle "playchess.com"]
[Source "ChessBase"]
[SourceQuality "1"]
[TimeControl "40/5400+30:1800+30"]

1. e4 {[%emt 0:00:00]} c5 {[%emt 0:00:00]} 2. Nf3 {[%emt 0:00:00]} e6 {[%emt 0:00:00]} 3. d4 {[%emt 0:06:32]} cxd4 {[%emt 0:00:00]} 4. Qxd4 {[%emt 0:02:15]} Nc6 {[%emt 0:02:35]} 5. Qe3 {[%emt 0:00:16]} b6 {[%emt 0:05:05]} 6. Be2 {[%emt 0:04:57]} Bc5 {[%emt 0:01:38]} 7. Qf4 {[%emt 0:10:14]} Nf6 {[%emt 0:12:36]} 8. O-O {[%emt 0:02:07]} h6 {[%emt 0:02:43]} 9. e5 {[%emt 0:07:56]} Nd5 {[%emt 0:16:07]} 10. Qg3 {[%emt 0:01:10]} Kf8 {[%emt 0:06:48]} 11. Nbd2 {[%emt 0:05:18]} Nde7 {[%emt 0:07:25]} 12. Ne4 {[%emt 0:05:56]} Nf5 {[%emt 0:00:17]} 13. Qf4 {[%emt 0:06:25]} Nfd4 {[%emt 0:12:01]} 14. Bd1 {[%emt 0:12:39]} Nxf3+ {[%emt 0:01:43]} 15. Bxf3 {[%emt 0:00:39]} g5 {[%emt 0:10:03]} 16. Qd2 {[%emt 0:10:39]} Nxe5 {[%emt 0:01:27]} 17. Qc3 {[%emt 0:04:05]} Nxf3+ {[%emt 0:00:34]} 18. Qxf3 {[%emt 0:00:46]} Bb7 {[%emt 0:00:57]} 19. Qc3 {[%emt 0:00:30]} Rg8 {[%emt 0:01:10]} 20. Nxc5 {[%emt 0:03:37]} bxc5 {[%emt 0:00:08]} 21. Qxc5+ {[%emt 0:01:09]} Qe7 {[%emt 0:01:08]} 22. Qa5 {[%emt 0:08:16]} Kg7 {[%emt 0:06:17]} 23. Bd2 {[%emt 0:02:37]} Qd6 {[%emt 0:02:46]} 24. Bc3+ {[%emt 0:01:38]} f6 {[%emt 0:00:06]} 25. Rad1 {[%emt 0:01:39]} Qc6 {[%emt 0:00:36]} 26. f3 {[%emt 0:00:14]} Rgc8 {[%emt 0:02:19]} 27. Qb4 {[%emt 0:00:22]} Rf8 {[%emt 0:02:07]} 28. Qd4 {[%emt 0:00:45]} Rf7 {[%emt 0:00:18]} 29. Kh1 {[%emt 0:00:23]} Qb6 {[%emt 0:00:34]} 30. Qg4 {[%emt 0:00:35]} Bd5 {[%emt 0:01:39]} 31. f4 {[%emt 0:00:57]} Kg6 {[%emt 0:02:32]} 32. f5+ {[%emt 0:00:45]} Kg7 {[%emt 0:00:15]} 33. Qh5 {[%emt 0:00:18]} Qb7 {[%emt 0:00:48]} 34. Rd2 {[%emt 0:00:40]} exf5 {[%emt 0:00:18]} 35. Rxf5 {[%emt 0:00:17]} Be4 {[%emt 0:00:25]} 36. Rf1 {[%emt 0:00:23]} Bg6 {[%emt 0:00:03]} 37. Qh3 {[%emt 0:00:28]} Qb5 {[%emt 0:00:37]} 38. Rfd1 {[%emt 0:00:46]} Bf5 {[%emt 0:01:15]} 39. Qf3 {[%emt 0:00:35]} Rb8 {[%emt 0:00:57]} 40. Rf2 {[%emt 0:00:20]} Bg6 {[%emt 0:01:08]} 41. Rd6 {[%emt 0:07:50]} Rb6 {[%emt 0:07:36]} 42. Rxf6 {[%emt 0:14:58]} Rbxf6 {[%emt 0:00:37]} 43. Bxf6+ {[%emt 0:00:10]} Kh7 {[%emt 0:00:07]} 44. Qa8 {[%emt 0:01:51]} Rxf6 {[%emt 0:11:28]} 45. Rxf6 {[%emt 0:00:32]} Qxb2 {[%emt 0:00:37]} 46. Qf8 {[%emt 0:01:15]} Qe5 {[%emt 0:00:24]} 47. Rf1 {[%emt 0:04:11]} Bxc2 {[%emt 0:03:47]} 48. Qf7+ {[%emt 0:01:56]} Qg7 {[%emt 0:00:52]} 49. Rf6 {[%emt 0:00:49]} Bd3 50. g4 {[%emt 0:01:13]} a6 {[%emt 0:01:46]} 51. Rxh6+ {[%emt 0:00:26]} 1-0

[Event "GER-ch Youth U12W 2020"]
[Site "Willingen"]
[Date "2020.10.29"]
[Round "4.2"]
[White "Wartenberg, Alissa"]
[Black "Wilmink, Anna"]
[Result "0-1"]
[ECO "C42"]
[WhiteElo "1463"]
[BlackElo "1608"]
[Annotator "NA RC"]
[PlyCount "72"]
[EventDate "2020.10.27"]
[EventType "swiss"]
[EventRounds "7"]
[EventCountry "GER"]
[SourceTitle "playchess.com"]
[Source "ChessBase"]
[SourceQuality "1"]
[TimeControl "40/5400+30:1800+30"]

1. e4 {[%emt 0:00:00]} e5 {[%emt 0:00:00]} 2. Nf3 {[%emt 0:00:00]} Nf6 {[%emt 0:00:00]} 3. Nc3 {[%emt 0:00:00]} Bb4 {[%emt 0:00:14]} 4. Nd5 {[%emt 0:00:40]} Nxd5 {[%emt 0:01:06]} 5. exd5 {[%emt 0:00:08]} O-O {[%emt 0:01:31]} 6. c3 {[%emt 0:03:35]} Ba5 {[%emt 0:01:19]} 7. a4 {[%emt 0:04:17]} a6 {[%emt 0:01:49]} 8. b3 {[%emt 0:03:59]} d6 {[%emt 0:01:51]} 9. Qc2 {[%emt 0:04:20]} Nd7 {[%emt 0:07:05]} 10. Ba3 {[%emt 0:07:40]} Nf6 {[%emt 0:03:34]} 11. O-O-O {[%emt 0:05:51]} Re8 {[%emt 0:05:20]} 12. Ng5 {[%emt 0:05:07]} c6 {[%emt 0:04:53]} 13. Bd3 {[%emt 0:03:27]} h6 {[%emt 0:04:18]} 14. Ne4 {[%emt 0:03:23]} Nxe4 {[%emt 0:06:42]} 15. Bxe4 {[%emt 0:01:08]} cxd5 {[%emt 0:01:08]} 16. Bxd5 {[%emt 0:00:37]} Be6 {[%emt 0:00:58]} 17. Bxe6 {[%emt 0:00:21]} Rxe6 {[%emt 0:00:14]} 18. h4 {[%emt 0:02:00]} d5 {[%emt 0:02:06]} 19. Rh3 {[%emt 0:06:48]} Rc8 {[%emt 0:04:03]} 20. g4 {[%emt 0:06:41]} e4 {[%emt 0:04:02]} 21. Kb2 {[%emt 0:09:45]} d4 {[%emt 0:05:29]} 22. Rc1 {[%emt 0:07:36]} b5 {[%emt 0:11:48]} 23. axb5 {[%emt 0:01:10]} axb5 {[%emt 0:00:21]} 24. h5 {[%emt 0:04:17]} b4 {[%emt 0:01:48]} 25. c4 {[%emt 0:03:50]} Ra8 {[%emt 0:08:31]} 26. Rhh1 {[%emt 0:03:24]} bxa3+ {[%emt 0:00:31]} 27. Ka2 {[%emt 0:00:27]} d3 {[%emt 0:01:56]} 28. Qd1 {[%emt 0:01:09]} Qd4 {[%emt 0:01:05]} 29. Rb1 {[%emt 0:00:37]} Qxf2 {[%emt 0:01:56]} 30. b4 {[%emt 0:01:37]} Bc7 {[%emt 0:01:05]} 31. Qc1 {[%emt 0:04:11]} e3 {[%emt 0:04:03]} 32. Rd1 {[%emt 0:02:34]} e2 {[%emt 0:01:38]} 33. Re1 {[%emt 0:00:33]} Bg3 {[%emt 0:00:57]} 34. c5 {[%emt 0:02:32]} Qxe1 {[%emt 0:00:52]} 35. Qxe1 {[%emt 0:00:13]} Bxe1 {[%emt 0:00:07]} 36. Rxe1 {[%emt 0:00:06]} Rf6 {[%emt 0:00:22]} 0-1

[Event "GER-ch Youth U12W 2020"]
[Site "Willingen"]
[Date "2020.10.29"]
[Round "4.3"]
[White "Jacobasch, Ronja"]
[Black "Trunz, Michelle"]
[Result "1/2-1/2"]
[ECO "A06"]
[WhiteElo "1549"]
[BlackElo "1662"]
[Annotator "NA RC"]
[PlyCount "150"]
[EventDate "2020.10.27"]
[EventType "swiss"]
[EventRounds "7"]
[EventCountry "GER"]
[SourceTitle "playchess.com"]
[Source "ChessBase"]
[SourceQuality "1"]
[TimeControl "40/5400+30:1800+30"]

1. Nf3 {[%emt 0:00:00]} d5 {[%emt 0:00:00]} 2. d3 {[%emt 0:00:00]} Nf6 {[%emt 0:00:00]} 3. g3 {[%emt 0:00:00]} c6 {[%emt 0:00:26]} 4. Bg2 {[%emt 0:00:13]} Bf5 {[%emt 0:00:50]} 5. O-O {[%emt 0:00:27]} e6 {[%emt 0:00:11]} 6. Nbd2 {[%emt 0:00:30]} h6 {[%emt 0:00:17]} 7. Re1 {[%emt 0:00:19]} Be7 {[%emt 0:00:12]} 8. h3 {[%emt 0:08:54]} O-O {[%emt 0:00:23]} 9. Nh2 {[%emt 0:00:56]} a5 {[%emt 0:06:42]} 10. e4 {[%emt 0:02:11]} Bh7 {[%emt 0:00:07]} 11. e5 {[%emt 0:05:12]} Nfd7 {[%emt 0:00:07]} 12. d4 {[%emt 0:00:33]} b5 {[%emt 0:04:54]} 13. Ndf1 {[%emt 0:13:46]} Na6 {[%emt 0:03:16]} 14. h4 {[%emt 0:11:29]} Nb4 {[%emt 0:03:22]} 15. Ne3 {[%emt 0:03:24]} c5 {[%emt 0:10:42]} 16. c3 {[%emt 0:15:50]} Nd3 {[%emt 0:03:42]} 17. Rf1 {[%emt 0:00:35]} c4 {[%emt 0:02:29]} 18. Neg4 {[%emt 0:03:30]} Kh8 {[%emt 0:12:27]} 19. f4 {[%emt 0:05:38]} Nb6 {[%emt 0:01:58]} 20. Nf2 {[%emt 0:04:12]} Nxf2 {[%emt 0:02:28]} 21. Rxf2 {[%emt 0:00:35]} b4 {[%emt 0:00:22]} 22. Bh3 {[%emt 0:03:02]} Qd7 {[%emt 0:01:27]} 23. Qf1 {[%emt 0:01:46]} Bd3 {[%emt 0:00:27]} 24. Qd1 {[%emt 0:01:14]} bxc3 {[%emt 0:02:35]} 25. bxc3 {[%emt 0:00:27]} Na4 {[%emt 0:00:27]} 26. Qe1 {[%emt 0:01:42]} Rab8 {[%emt 0:03:07]} 27. Ng4 {[%emt 0:01:48]} Bf5 {[%emt 0:01:10]} 28. Kh2 {[%emt 0:00:40]} Rb7 {[%emt 0:00:31]} 29. Ne3 {[%emt 0:01:34]} Bxh3 {[%emt 0:00:20]} 30. Kxh3 {[%emt 0:00:12]} g6 {[%emt 0:00:41]} 31. Nc2 {[%emt 0:00:58]} h5 {[%emt 0:01:58]} 32. Qe3 {[%emt 0:04:44]} f5 {[%emt 0:12:49]} 33. exf6 {[%emt 0:02:23]} Bxf6 {[%emt 0:00:36]} 34. Re2 {[%emt 0:01:22]} e5+ {[%emt 0:02:36]} 35. Kh2 {[%emt 0:01:09]} e4 {[%emt 0:01:40]} 36. Rf2 {[%emt 0:03:35]} Bg7 {[%emt 0:00:53]} 37. Ba3 {[%emt 0:01:06]} Rf6 {[%emt 0:02:30]} 38. Raf1 {[%emt 0:01:06]} Bh6 {[%emt 0:00:47]} 39. Qe1 {[%emt 0:00:31]} Nb2 {[%emt 0:10:08]} 40. Bxb2 {[%emt 0:00:43]} Rxb2 {[%emt 0:00:10]} 41. Ne3 {[%emt 0:30:58]} Rfb6 {[%emt 0:31:59]} 42. Qc1 {[%emt 0:00:00]} R2b5 {[%emt 0:00:00]} 43. Qe1 {[%emt 0:00:00]} Qb7 {[%emt 0:00:00]} 44. Re2 {[%emt 0:00:00]} Rb1 {[%emt 0:00:00]} 45. Qf2 {[%emt 0:00:00]} R1b2 {[%emt 0:00:00]} 46. Rfe1 {[%emt 0:00:00]} a4 {[%emt 0:00:00]} 47. Rxb2 {[%emt 0:00:00]} Rxb2 {[%emt 0:00:00]} 48. Re2 {[%emt 0:00:00]} a3 {[%emt 0:00:00]} 49. Kh3 {[%emt 0:00:00]} Rxe2 {[%emt 0:00:00]} 50. Qxe2 {[%emt 0:00:00]} Qb2 {[%emt 0:00:00]} 51. Qc2 {[%emt 0:00:00]} Kh7 {[%emt 0:00:00]} 52. Kg2 {[%emt 0:00:00]} Qb5 {[%emt 0:00:00]} 53. Qc1 {[%emt 0:00:00]} Bf8 {[%emt 0:00:00]} 54. Qc2 {[%emt 0:00:00]} Kg7 {[%emt 0:00:00]} 55. f5 {[%emt 0:00:00]} Qb2 {[%emt 0:00:00]} 56. Kf2 {[%emt 0:00:00]} Bd6 {[%emt 0:00:00]} 57. fxg6 {[%emt 0:00:00]} Kxg6 {[%emt 0:00:00]} 58. Kg2 {[%emt 0:00:00]} Bc7 {[%emt 0:00:06]} 59. Qf2 {[%emt 0:00:00]} Ba5 {[%emt 0:01:34]} 60. Nxd5 {[%emt 0:00:00]} Bxc3 {[%emt 0:01:18]} 61. Nf4+ {[%emt 0:00:06]} Kh6 {[%emt 0:00:30]} 62. d5 {[%emt 0:01:43]} Bd4 {[%emt 0:00:42]} 63. Qe2 {[%emt 0:00:34]} Be5 {[%emt 0:01:26]} 64. Kf1 {[%emt 0:01:51]} Bxf4 {[%emt 0:01:59]} 65. gxf4 {[%emt 0:00:51]} Qd4 {[%emt 0:02:53]} 66. d6 {[%emt 0:00:49]} Qxd6 {[%emt 0:00:41]} 67. Qxe4 {[%emt 0:00:39]} Qd3+ {[%emt 0:00:53]} 68. Qxd3 {[%emt 0:00:11]} cxd3 {[%emt 0:00:02]} 69. f5 {[%emt 0:00:28]} Kg7 {[%emt 0:00:05]} 70. Ke1 {[%emt 0:00:21]} Kf6 {[%emt 0:00:04]} 71. Kd2 {[%emt 0:00:05]} Kxf5 {[%emt 0:00:08]} 72. Kxd3 {[%emt 0:00:07]} Kg4 {[%emt 0:00:16]} 73. Ke2 {[%emt 0:00:10]} Kxh4 {[%emt 0:00:07]} 74. Kf2 {[%emt 0:00:05]} Kg4 {[%emt 0:00:11]} 75. Kg2 {[%emt 0:00:13]} Kf4 {[%emt 0:00:13]} 1/2-1/2

[Event "GER-ch Youth U12W 2020"]
[Site "Willingen"]
[Date "2020.10.29"]
[Round "4.4"]
[White "Bangiev, Katharina"]
[Black "Peglau, Dora"]
[Result "1/2-1/2"]
[ECO "B24"]
[WhiteElo "1539"]
[BlackElo "1683"]
[Annotator "NA RC"]
[PlyCount "95"]
[EventDate "2020.10.27"]
[EventType "swiss"]
[EventRounds "7"]
[EventCountry "GER"]
[SourceTitle "playchess.com"]
[Source "ChessBase"]
[SourceQuality "1"]
[TimeControl "40/5400+30:1800+30"]

1. e4 {[%emt 0:00:00]} c5 {[%emt 0:00:00]} 2. Nc3 {[%emt 0:00:00]} Nc6 {[%emt 0:00:48]} 3. g3 {[%emt 0:00:08]} g6 {[%emt 0:02:43]} 4. Bg2 {[%emt 0:01:00]} Bg7 {[%emt 0:00:43]} 5. f4 {[%emt 0:00:47]} d6 {[%emt 0:03:10]} 6. Nge2 {[%emt 0:05:12]} Nf6 {[%emt 0:06:13]} 7. O-O {[%emt 0:03:11]} O-O 8. d3 {[%emt 0:03:17]} Bd7 {[%emt 0:05:55]} 9. h3 {[%emt 0:05:28]} a6 {[%emt 0:04:40]} 10. a4 {[%emt 0:01:34]} Qc7 {[%emt 0:00:35]} 11. Be3 {[%emt 0:04:36]} Rab8 {[%emt 0:01:49]} 12. Qd2 {[%emt 0:05:44]} b5 {[%emt 0:03:34]} 13. axb5 {[%emt 0:00:24]} axb5 {[%emt 0:00:04]} 14. f5 {[%emt 0:06:31]} b4 {[%emt 0:04:01]} 15. Nd1 {[%emt 0:00:22]} Ra8 {[%emt 0:00:41]} 16. Rxa8 {[%emt 0:00:38]} Rxa8 {[%emt 0:00:01]} 17. c3 {[%emt 0:01:40]} Ra1 {[%emt 0:09:13]} 18. d4 {[%emt 0:09:40]} bxc3 {[%emt 0:12:07]} 19. bxc3 {[%emt 0:00:31]} Qa5 {[%emt 0:01:16]} 20. fxg6 {[%emt 0:05:57]} hxg6 {[%emt 0:01:07]} 21. Nf4 {[%emt 0:13:47]} cxd4 {[%emt 0:04:32]} 22. cxd4 {[%emt 0:00:54]} Qxd2 {[%emt 0:01:50]} 23. Bxd2 {[%emt 0:00:11]} Ra4 {[%emt 0:07:58]} 24. d5 {[%emt 0:06:03]} Ne5 {[%emt 0:01:22]} 25. Nc3 {[%emt 0:04:19]} Ra3 {[%emt 0:02:33]} 26. Rb1 {[%emt 0:03:28]} g5 {[%emt 0:05:59]} 27. Nfe2 {[%emt 0:01:48]} Bxh3 {[%emt 0:02:09]} 28. Bxg5 {[%emt 0:02:14]} Bg4 {[%emt 0:10:15]} 29. Rb7 {[%emt 0:04:38]} Kf8 {[%emt 0:01:41]} 30. Rb8+ {[%emt 0:00:39]} Ne8 {[%emt 0:00:02]} 31. Rb7 {[%emt 0:02:04]} Bd7 {[%emt 0:06:03]} 32. Bf4 {[%emt 0:03:30]} Ra1+ {[%emt 0:00:46]} 33. Rb1 {[%emt 0:01:03]} Rxb1+ {[%emt 0:00:42]} 34. Nxb1 {[%emt 0:00:06]} Nd3 {[%emt 0:00:24]} 35. Bd2 {[%emt 0:02:17]} Be5 {[%emt 0:00:59]} 36. Bc3 {[%emt 0:00:39]} Nf6 {[%emt 0:00:40]} 37. Bxe5 {[%emt 0:01:20]} Nxe5 {[%emt 0:00:02]} 38. Nbc3 {[%emt 0:00:36]} Bg4 {[%emt 0:00:32]} 39. Nd4 {[%emt 0:01:13]} Ke8 {[%emt 0:00:33]} 40. Kf2 {[%emt 0:00:39]} Nd3+ {[%emt 0:00:31]} 41. Ke3 {[%emt 0:30:29]} Nc5 {[%emt 0:01:54]} 42. Bf3 {[%emt 0:00:00]} Bxf3 {[%emt 0:01:21]} 43. Nxf3 {[%emt 0:00:00]} Nh5 {[%emt 0:03:00]} 44. g4 {[%emt 0:00:00]} Nf6 {[%emt 0:01:12]} 45. g5 {[%emt 0:00:00]} Nh5 {[%emt 0:01:30]} 46. Kd4 {[%emt 0:00:00]} Nd7 {[%emt 0:01:57]} 47. e5 {[%emt 0:00:00]} dxe5+ {[%emt 0:03:25]} 48. Nxe5 {[%emt 0:00:00]} 1/2-1/2